Cogmind - Beta 11.1 *** ADVENTURER MODE // 2022.08.29 @ 20:14:25 Player: Hemlokk Result: Destroyed by as-76649 with Assembled Rifle Performance ------------- Evolutions (0) 0 Regions Visited (2) 400 Robots Destroyed (17) 85 Value Destroyed (300) 300 Prototype IDs (0) 0 Alien Tech Used (0) 0 Bonus (0) 0 TOTAL SCORE: 785 Bonus ------- None Cogmind --------- Core Integrity 0/250 Matter 266/300 Energy 100/100 System Corruption 0% Temperature Cool (0) Movement Treading (160) Location -10/Mines Parts ------- > --- POWER (1) -------- (None) > --- PROPULSION (2) --- Light Treads Light Treads > --- UTILITY (2) ------ Medium Storage Unit Visual Processing Unit > --- WEAPON (2) ------- Light Cannon Grenade Launcher > --- INVENTORY (10) --- Light Treads Light Treads Targeting Computer EM Pulse Gun EM Pulse Gun Beam Rifle Beam Cannon Beam Cannon Peak State ------------ > --- POWER ------------ Light Ion Engine > --- PROPULSION ------- Wheel Wheel > --- UTILITY ---------- Medium Storage Unit Visual Processing Unit > --- WEAPON ----------- EM Pulse Gun EM Pulse Gun > --- INVENTORY -------- Light Treads Light Treads Light Treads Aluminum Leg Heat Sink Targeting Computer EM Pulse Gun EM Pulse Gun Beam Cannon Beam Cannon [Rating: 9] Favorites ----------- Power Light Ion Engine Engine Light Ion Engine Propulsion Wheel Treads Light Treads Wheel Wheel Utility Medium Storage Unit Device Heat Sink Storage Medium Storage Unit Processor Visual Processing Unit Protection Light Armor Plating Weapon EM Pulse Gun Energy Gun EM Pulse Gun Ballistic Gun Light Assault Rifle Ballistic Cannon Light Cannon Launcher Grenade Launcher Build | -11 -10 -10 ------- Run | Scr Mat Min Slots Evolved . | . . . Power . | . . . Propulsion . | . . . Utility . | . . . Weapon . | . . . Parts Attached 18 | 5 8 5 Power 2 | 1 . 1 Engine 2 | 1 . 1 Core . | . . . Reactor . | . . . Propulsion 4 | 2 . 2 Treads 2 | . . 2 Leg . | . . . Wheel 2 | 2 . . Hover . | . . . Flight . | . . . Utility 4 | . 4 . Device 1 | . 1 . Storage 1 | . 1 . Processor 1 | . 1 . Hackware . | . . . Protection 1 | . 1 . Artifact . | . . . Weapon 8 | 2 4 2 Energy Gun 2 | . 2 . Energy Cannon . | . . . Ballistic Gun 4 | 2 2 . Ballistic Cannon 1 | . . 1 Launcher 1 | . . 1 Special Weapon . | . . . Impact Weapon . | . . . Slashing Weapon . | . . . Piercing Weapon . | . . . Special Melee Weapon . | . . . Unidentified Prototypes . | . . . Parts Lost 3 | . . 3 Power 1 | . . 1 Propulsion 1 | . . 1 Utility . | . . . Weapon 1 | . . 1 Highest Loss Streak 2 | . . 2 To Critical Strikes . | . . . Average Slot Usage (%) 94 | . 87 99 Engine 13 | . 14 13 Treads 14 | . . 25 Wheel 13 | . 28 2 Storage 11 | . 9 14 Processor 8 | . 2 14 Protection 1 | . 2 . Energy Gun 23 | . 18 26 Ballistic Gun 4 | . 9 . Naked Turns . | . . . Heaviest Build 20 | 5 20 18 Greatest Support 40 | 20 20 40 Greatest Overweight (x) . | . . . Average Overweight (x) . | . . . Largest Inventory Capacity 10 | 5 10 10 Average Capacity 8 | 5 8 10 Most Carried 10 | 4 10 10 Average Carried 7 | 1 7 8 Final Capacity 10 | 5 10 10 Final Carried 10 | 4 10 8 Class Distribution -------------------- 100% | Mutant Dominant Class ---------------- Mutant | -10/Materials Mutant | -10/Mines Resources | -11 -10 -10 ----------- Run | Scr Mat Min Matter Collected 386 | 255 101 30 Remotely . | . . . Salvage Created 513 | 36 350 127 Parts 42 | 2 24 16 Haulers Intercepted 2 | . 2 . Recyclers Shooed . | . . . Parts Field Recycled . | . . . Retrieved Matter . | . . . Parts Self-Destructed . | . . . Prevented . | . . . Kills | -11 -10 -10 ------- Run | Scr Mat Min Combat Hostiles Destroyed 11 | 1 6 4 Guns 11 | 1 6 4 Classes Destroyed 5 | 1 3 1 Builder 1 | . . 1 Hauler 2 | . 2 . Watcher 3 | . 3 . Swarmer 6 | . 3 3 Grunt 5 | 1 3 1 Best Kill Streak 6 | 1 6 3 Combat Bots Only 6 | 1 6 3 Max Kills in Single Turn 2 | 1 1 2 Gunslinging . | . . . Exploded . | . . . Melee . | . . . Uniques/NPCs Destroyed . | . . . Combat | -11 -10 -10 -------- Run | Scr Mat Min Damage Taken 854 | 34 115 705 Core 252 | 17 40 195 Absorbed by Shields . | . . . Core Remaining (%) 93 | 93 . . Volleys Fired 37 | 6 23 8 Largest 2 | 2 2 2 Hottest 80 | 40 80 80 Shots Fired 74 | 12 46 16 Gun 72 | 12 46 14 Cannon 1 | . . 1 Launcher 1 | . . 1 Special . | . . . Kinetic 37 | 12 24 1 Thermal . | . . . Explosive 1 | . . 1 Electromagnetic 36 | . 22 14 Robot Hit Streak 23 | 11 23 15 Robot Miss Streak 3 | . 3 . Penetration Max . | . . . Secondary Targets 3 | . 1 2 Max Gunslinging Chain 1 | . 1 1 Shots Hit Robots 61 | 11 36 14 Core Hits 36 | 3 19 14 Critical Kills . | . . . Critical Parts Destroyed . | . . . Critical Strikes . | . . . Melee Attacks . | . . . Impact . | . . . Slashing . | . . . Piercing . | . . . Sneak Attacks . | . . . Combat Hostiles . | . . . Follow-up Attacks . | . . . Damage Inflicted 872 | 96 486 290 Guns 704 | 96 428 180 Cannons . | . . . Explosions 168 | . 58 110 Melee . | . . . Ramming . | . . . Kinetic 254 | 96 158 . Thermal 81 | . 58 23 Explosive 87 | . . 87 Electromagnetic 450 | . 270 180 Impact . | . . . Slashing . | . . . Piercing . | . . . Highest Corruption . | . . . Average Corruption . | . . . Corruption Purged . | . . . Corruption Blocked . | . . . Overload Shots . | . . . Overflow Damage 17 | . 11 6 Projectiles . | . . . Explosions 17 | . 11 6 Melee . | . . . Knockbacks . | . . . Impact . | . . . Kinetic . | . . . Secondary . | . . . Self-Inflicted Damage 54 | . 24 30 Shots 2 | . 1 1 Rammed . | . . . Targets Rammed . | . . . Kicked . | . . . Crushed . | . . . Highest Temperature 111 | 12 81 111 Average Temperature 28 | 7 24 42 Received Heat Transfer 157 | 24 54 79 Siege Activations . | . . . Robots Corrupted . | . . . Combat Hostiles . | . . . Parts Fried 2 | . 2 . Impact Corruptions . | . . . Robots Melted . | . . . Combat Hostiles . | . . . Parts Melted . | . . . Heat Transferred 100 | . 100 . Parts Sabotaged . | . . . Parts Stolen . | . . . Parts Stripped . | . . . Power Chain Reactions 3 | . 2 1 Missiles Intercepted . | . . . Alert | -11 -10 -10 ------- Run | Scr Mat Min Peak Influence 213 | 20 213 128 Initial 11 | . 11 . Average 69 | 2 110 46 Maximum Alert Level 1 | . 1 . Low Security (%) 96 | 100 90 100 Level 1 3 | . 9 . Level 2 . | . . . Level 3 . | . . . Level 4 . | . . . Level 5 . | . . . High Security . | . . . Max Security . | . . . Squads Dispatched 1 | . 1 . Investigation 1 | . 1 . Extermination . | . . . Reinforcement . | . . . Assault . | . . . Garrison . | . . . Intercept . | . . . Searches Triggered . | . . . Construction Impeded . | . . . Haulers Reinforced . | . . . Active Scanning Responses . | . . . Cargo Convoy Interrupts . | . . . Stealth | -11 -10 -10 --------- Run | Scr Mat Min Distress Signals . | . . . Communications Jammed . | . . . Distress Signals . | . . . Times Spotted 32 | 1 9 22 Peak Tracking Total 18 | 1 5 18 Tactical Retreats 1 | . . 1 Traps | -11 -10 -10 ------- Run | Scr Mat Min Traps Triggered . | . . . Indirectly . | . . . Trap Hack Attempts . | . . . Triggered . | . . . Disarmed . | . . . Reprogrammed . | . . . Reused . | . . . Traps Extracted . | . . . Installed . | . . . Triggered . | . . . Machines | -11 -10 -10 ---------- Run | Scr Mat Min Machines Disabled . | . . . Max in Single Turn . | . . . Machines Sabotaged . | . . . Garrisons Compromised . | . . . Overloaded Fab Kills . | . . . Hacking | -11 -10 -10 --------- Run | Scr Mat Min Machines Accessed 4 | . 4 . Terminals 4 | . 4 . Fabricators . | . . . Repair Stations . | . . . Recycling Units . | . . . Scanalyzers . | . . . Garrison Access . | . . . Total Hacks 17 | . 17 . Successful 13 | . 13 . Failed 4 | . 4 . Catastrophic . | . . . Database Lockouts . | . . . Manual 4 | . 4 . Terminals 17 | . 17 . Fabricators . | . . . Repair Stations . | . . . Recycling Units . | . . . Scanalyzers . | . . . Garrison Access . | . . . Terminal Hacks 11 | . 11 . Record 4 | . 4 . Robot Analysis 2 | . 2 . Branch Access Points 1 | . 1 . Alert Level 1 | . 1 . Unreport Threat 1 | . 1 . Locate Traps 1 | . 1 . Zone Layout 1 | . 1 . Fabricator Hacks . | . . . Repair Station Hacks . | . . . Recycling Unit Hacks . | . . . Scanalyzer . | . . . Garrison Access Hacks . | . . . Unauthorized Hacks 2 | . 2 . Terminals 2 | . 2 . Botnet 2 | . 2 . Fabricators . | . . . Repair Stations . | . . . Recycling Units . | . . . Scanalyzers . | . . . Garrison Access . | . . . Data Cores Recovered . | . . . Used . | . . . Hacking Detections 3 | . 3 . Full Trace Events 1 | . 1 . Feedback Events . | . . . Feedback Blocked . | . . . Robot Schematics Acquired . | . . . Robots Built . | . . . Authchips . | . . . Time . | . . . Total Robot Build Rating . | . . . Part Schematics Acquired . | . . . Parts Built . | . . . Authchips . | . . . Time . | . . . Total Part Build Rating . | . . . Parts Repaired . | . . . Time . | . . . Parts Recycled . | . . . Recycled Matter . | . . . Retrieved Matter . | . . . Retrieved Components . | . . . Parts Scanalyzed . | . . . Part Schematics Acquired . | . . . Parts Damaged . | . . . Bothacking | -11 -10 -10 ------------ Run | Scr Mat Min Used RIF Installer . | . . . Robots Hacked . | . . . Non-combat . | . . . Combat . | . . . Robot Hacks Applied . | . . . Relay Couplers Released . | . . . Fabnet Peak Effective % . | . . . Robots Rewired 1 | . . 1 Allies Hacked . | . . . Hacks Repelled . | . . . Allies | -11 -10 -10 -------- Run | Scr Mat Min Total Allies 1 | . . 1 Largest Group 1 | . . 1 Highest-Rated Group 8 | . . 8 Highest-Rated Ally 8 | . . 8 Total Orders . | . . . Ally Attacks 4 | . . 4 Total Damage 24 | . . 24 Kills . | . . . Allies Corrupted . | . . . Allies Melted . | . . . Intel | -11 -10 -10 ------- Run | Scr Mat Min Robot Analysis Total 2 | . 2 . Derelict Logs Recovered 1 | . . 1 Drone Launches . | . . . Drone Recoveries . | . . . Exploration | -11 -10 -10 ------------- Run | Scr Mat Min Turns Passed 1041 | 78 422 541 Spaces Moved 797 | 69 402 326 Core 15 | 15 . . Treads 291 | . . 291 Legs . | . . . Wheels 491 | 54 402 35 Hover . | . . . Flight . | . . . Fastest Speed 50 | 50 80 80 Average Speed 108 | 73 80 151 Slowest Speed 160 | 80 80 160 Overloaded Moves . | . . . Propulsion Burnouts . | . . . Robots Hopped . | . . . Cave-ins Triggered . | . . . Exploration Rate (%) 36 | 7 43 60 Regions Visited 2 Branch Regions 1 Pre-discovered Areas 1 | . . 1 Known Exits Taken 1 | . 1 . Unknown Exits Taken 1 | 1 . . Scrap Searched . | . . . Spaces Dug . | . . . Terrain Destroyed 10 | . 3 7 Melee . | . . . Projectile . | . . . AOE 10 | . 3 7 Terrain Rammed . | . . . Walls Destroyed . | . . . Machines Disabled . | . . . Actions | -11 -10 -10 --------- Run | Scr Mat Min Total 906 | 83 464 359 Wait 12 | . 4 8 Move 795 | 68 401 326 Hop . | . . . Pick Up 20 | 4 13 3 Fast Attach 13 | 5 7 1 Attach 3 | . . 3 Detach 3 | . 3 . Swap 2 | . 1 1 Drop 16 | . 12 4 Fire 37 | 6 23 8 Melee . | . . . Ram . | . . . Kick . | . . . Crush . | . . . Escape Stasis . | . . . Rewire 5 | . . 5 Trap . | . . . Miscellaneous . | . . . Route ------- -11/Scrapyard -10/Materials (discovered 4 exits: [*Mat x2] / *Min x2) -10/Mines (discovered 1 exit: [*Mat]) History --------- Turn | Location | Event 2 | -11/Scrapyard | Met Revision 17 52 | -11/Scrapyard | Discovered new exit (range 8) 79 | -11/Scrapyard | Entered Materials 303 | -10/Materials | Build established: Mutant 339 | -10/Materials | Discovered new exit (range 10) 352 | -10/Materials | Discovered new exit (range 16) 441 | -10/Materials | Identified exit to Mines 460 | -10/Materials | Discovered new exit (range 7) 501 | -10/Materials | Entered Mines 586 | -10/Mines | Discovered new exit (range 5) 779 | -10/Mines | Learned location of Zion (-7) 801 | -10/Mines | Joined a pair of Derelicts in attacking an 0b10 outpost 1002 | -10/Mines | Assembled infested the area 1027 | -10/Mines | Core integrity fell below 50% 1038 | -10/Mines | Core integrity fell below 20% 1042 | -10/Mines | Destroyed by as-76649 with Assembled Rifle Last Messages --------------- 00869_ Acquired Lgt. Ion Engine. 00903_ K-01 Serf collects debris. 01002_ ALERT: Infestation in the mines, dispatching Demolisher response squad. 01020_ Dropped EM Pulse Gun. 01029_ EM Pulse Gun destroyed. 01030_ C-30 ARC bursts open, deploying its payload. 01030_ D-53 Grenadier unfolds itself. 01033_ Lgt. Ion Engine destroyed. 01033_ Mercenary 1a destroyed. 01033_ as-33477 destroyed. 01033_ as-67827 destroyed. 01033_ as-04360 destroyed. 01035_ as-35303 destroyed. 01035_ as-14702 destroyed. 01035_ as-56171 destroyed. 01035_ as-80717 destroyed. 01038_ as-45794 destroyed. 01038_ as-48359 destroyed. 01038_ as-30473 destroyed. Map ----- +----------------------------------------------------+ | | | | | ?????????????????????????????????????????????????? | | ?????????????????????????????????????????????????? | | ?????????????????????????????????????????????????? | | ?????????????????????????????????????????????????? | | ???????????????????????##????????????????????????? | | ??????????????????????? ####????? ????????????? | | ??????????????????????? ##??? ???????????? | | ??????????????????????? #?? ???????????? | | ??????????????????????? ### ???????????? | | ??????????????????????? ??????????? | | ??????????????????????? a ??????????? | | ??????????????????????? ??????????? | | ??????????????????????? #??????????? | | ???????????????????????# " ##?????????? | | ??????????????????????## #?????????? | | ????????????????????### a ?????????? | | ?????????????## ????# a #????????? | | ????????????## "### ????????????? | | ????????????# "%" dd ??????????????????? | | ???? #### #???????????????????? | | ???? ??????????# ##???????????????????? | | ???????????????????# #???????????????????? | | ???????????????????## #???????????????????? | | ??????????????????## @ ##???????????????????? | | ??????????????????# ###??????????????????? | | ??????????????????# ##?????????????????? | | ??????????????????## # #?????????????????? | | ???????????????????####### #?????????????????? | | ?????????????????????????## ##????????????????? | | ??????????????????????????## #????????????????? | | ??????????????????????????## #????????????????? | | ?????????????# ###?????#### #????????????????? | | ?????????????# #### #????????????????? | | ??????????????????# ##????????????????? | | ??????????????????# ##?????? ??????????? | | ??????????????????###### ##???? ??????????? | | ???????????????????????# ##????? ?????????? | | ???????????????????????# #?????# #????????? | | ??????????#####???????## #????# ????????? | | ????????### ##?????## #???# ???????? | | ???????## #????## #### ???????? | | ??????## ##???# ## ??????? | | ?????## ##??# ??????? | | ????## ## #??## ??????? | | ???## #### ##??## ??????? | | #### ##??# #???## ##???????? | | # ##??# #????## ##????????? | | ##### ##?????# #### ########?????????? | +----------------------------------------------------+ Best States ------------- Heat Dissipation 35 Energy Generation 10 Energy Capacity 125 Matter Stores 300 Matter Capacity 300 Sight Range 18 Terrain Scan Density 10 Armor Coverage 150 Resistance: KI 20 Resistance: TH 20 Resistance: EX 20 Resistance: EM 20 Resistance: I 20 Resistance: S 20 Resistance: P 20 Evasion (%) 50 Recoil Reduction 2 Offensive Hacking 10 Item Schematics ----------------- None Robot Schematics ------------------ None Fabricated ------------ Nothing Alien Tech Used ----------------- None Achievements -------------- A New Friend True Hacker Challenges ------------ None Game ------ Seed AerolevSpacefoldAirjet Manual? 0 Play Time 00:29:16 Cumulative 9.0 hours Start 2022.08.29 @ 19:40:43 End 2022.08.29 @ 20:14:25 Sessions 1 Manual Loads 0 Difficulty Adventurer Special Mode None Game No. 3 Rogue 0 Adventurer 3 Explorer 0 Win Type - Total 0 Types 0/0/0/0/0/0/0/0/0 Lore% 5 Gallery% 13 Achievement% 12 Wizard Run 0 Options --------- ASCII 0 Keyboard 1 Movement Numpad Keybinds 0 Fullscreen 1 Font 18/SmallcapsGlow Map View 76x50 Tactical HUD 1 Map Filters NONE Filters NONE Steam 1 RUN: 123b535e-2c04-4cee-8624-33ff3b154aed